fUSD/lending_fUSD_20260527
["ID","MTS","AMOUNT","RATE_DAILY","PERIOD"]
[423120321,1779868232000,-500.0,0.00026214,2]
[423120322,1779868232000,-500.0,0.00026214,2]
[423120325,1779868232000,-500.0,0.00026214,2]
[423120323,1779868232000,-500.0,0.00026214,2]
[423120324,1779868232000,-500.0,0.00026214,2]
[423120326,1779868232000,-500.0,0.00026214,2]
[423120259,1779868232000,-423.45454722,0.00026214,2]
[423120311,1779868232000,-500.0,0.00026214,2]
[423120297,1779868232000,-500.0,0.00026214,2]
[423120314,1779868232000,-500.0,0.00026214,2]
[423120295,1779868232000,-500.0,0.00026214,2]
[423120299,1779868232000,-500.0,0.00026214,2]
[423120271,1779868232000,-500.0,0.00026214,2]
[423120273,1779868232000,-500.0,0.00026214,2]
[423120272,1779868232000,-500.0,0.00026214,2]
[423120274,1779868232000,-500.0,0.00026214,2]
[423120275,1779868232000,-500.0,0.00026214,2]
[423120279,1779868232000,-500.0,0.00026214,2]
[423120276,1779868232000,-500.0,0.00026214,2]
[423120278,1779868232000,-500.0,0.00026214,2]
[423120281,1779868232000,-500.0,0.00026214,2]
[423120280,1779868232000,-500.0,0.00026214,2]
[423120269,1779868232000,-500.0,0.00026214,2]
[423120282,1779868232000,-500.0,0.00026214,2]
[423120277,1779868232000,-500.0,0.00026214,2]
[423120283,1779868232000,-500.0,0.00026214,2]
[423120298,1779868232000,-500.0,0.00026214,2]
[423120296,1779868232000,-500.0,0.00026214,2]
[423120284,1779868232000,-500.0,0.00026214,2]
[423120294,1779868232000,-500.0,0.00026214,2]
[423120292,1779868232000,-500.0,0.00026214,2]
[423120290,1779868232000,-500.0,0.00026214,2]
[423120293,1779868232000,-500.0,0.00026214,2]
[423120291,1779868232000,-500.0,0.00026214,2]
[423120288,1779868232000,-500.0,0.00026214,2]
[423120287,1779868232000,-500.0,0.00026214,2]
[423120285,1779868232000,-500.0,0.00026214,2]
[423120289,1779868232000,-526.3249177,0.00026214,2]
[423120336,1779868233000,-412.78021164,0.00026214,2]
[423120327,1779868233000,-400.0,0.00026214,2]
[423120329,1779868233000,-500.0,0.00026214,2]
[423120328,1779868233000,-500.0,0.00026214,2]
[423120330,1779868233000,-500.0,0.00026214,2]
[423120332,1779868233000,-500.0,0.00026214,2]
[423120333,1779868233000,-500.0,0.00026214,2]
[423120331,1779868233000,-500.0,0.00026214,2]
[423120334,1779868233000,-27.74558886,0.00026214,2]
[423120342,1779868233000,-81.46165301,0.00026215,2]
[423120338,1779868233000,-500.0,0.00026214,2]
[423120335,1779868233000,-472.25441114,0.00026214,2]
[423120340,1779868233000,-23452.44526692,0.00026215,2]
[423120339,1779868233000,-500.0,0.00026214,2]
[423120341,1779868233000,-394.9577675,0.00026214,2]
[423120343,1779868233000,-1950.26187277,0.00026215,2]
[423120344,1779868233000,-268.95559825,0.00026215,2]
[423120345,1779868233000,-285.0,0.00026215,2]
[423120337,1779868233000,-500.0,0.00026214,2]
[423120346,1779868238000,-313.7685406,0.00026215,2]
[423120347,1779868238000,-2082.91805988,0.00026215,2]
[423120349,1779868238000,-292.399994,0.00026215,2]
[423120350,1779868238000,-2212.43482613,0.00026215,2]
[423120348,1779868238000,-4505.54144169,0.00026215,2]
[423120648,1779868240000,-1129.96,0.00027178,2]
[423120544,1779868240000,-400.0,0.00026215,2]
[423120586,1779868240000,-689.1913314,0.00026215,2]
[423120595,1779868240000,-384.68938804,0.00026215,2]
[423120623,1779868240000,-1436.05,0.00026215,2]
[423120632,1779868240000,-12201.24266475,0.00026215,2]
[423120634,1779868240000,-9763.15068468,0.00026228,2]
[423120641,1779868240000,-301.549184,0.00027056,2]
[423120646,1779868240000,-7372.0239099,0.00027056,2]
[423120657,1779868240000,-2723.96,0.00027397,10]
[423120637,1779868240000,-504.13866721,0.00026488,2]
[423120643,1779868240000,-151.0,0.00027056,2]
[423120656,1779868240000,-3268.75,0.00027397,10]
[423120654,1779868240000,-3922.5,0.00027397,10]
[423120659,1779868240000,-500.0,0.00027534,2]
[423120639,1779868240000,-632.62,0.00027007,2]
[423120650,1779868240000,-9763.15068464,0.00027365,2]
[423120635,1779868240000,-1129.96,0.00026402,2]
[423120652,1779868240000,-151.0,0.00027397,2]
[423120753,1779868241000,-151.0,0.0003199,7]
[423120740,1779868241000,-150.0,0.00031956,7]
[423120744,1779868241000,-150.0,0.00031956,7]
[423120738,1779868241000,-150.0,0.00031956,7]
[423120748,1779868241000,-150.0,0.00031956,7]
[423120736,1779868241000,-150.0,0.00031956,7]
[423120734,1779868241000,-9763.15068464,0.00031913,2]
[423120732,1779868241000,-166.66,0.00031521,30]
[423120750,1779868241000,-500.0,0.00031989,2]
[423120719,1779868241000,-164.62,0.0003056,2]
[423120725,1779868241000,-166.66,0.00030909,30]
[423120746,1779868241000,-150.0,0.00031956,7]
[423120730,1779868241000,-632.62,0.00031508,2]
[423120759,1779868241000,-438.340192,0.0003199,7]
[423120742,1779868241000,-150.0,0.00031956,7]
[423120784,1779868241000,-151.0,0.00032232,7]
[423120782,1779868241000,-150.0,0.0003221,7]
[423120780,1779868241000,-166.66,0.00032133,30]
[423120764,1779868241000,-438.340192,0.0003199,7]
[423120774,1779868241000,-1540.41853989,0.00032,120]
[423120778,1779868241000,-210.40860113,0.00032051,3]
[423120755,1779868241000,-151.0,0.0003199,7]
[423120768,1779868241000,-232.477716,0.0003199,7]
[423120776,1779868241000,-1495.17,0.0003202,2]
[423120762,1779868241000,-438.340192,0.0003199,7]
[423120770,1779868241000,-232.477716,0.0003199,7]
[423120772,1779868241000,-232.477716,0.0003199,7]
[423120722,1779868241000,-632.62,0.00030608,2]
[423120757,1779868241000,-438.340192,0.0003199,7]
[423120766,1779868241000,-232.477716,0.0003199,7]
[423120716,1779868241000,-1495.17,0.00030495,2]
[423120724,1779868241000,-9763.15068464,0.00030776,2]
[423120726,1779868241000,-1151.0,0.00030961,2]
[423120786,1779868241000,-151.794388,0.00032232,7]
[423120671,1779868241000,-1013.84,0.00027963,2]
[423120669,1779868241000,-1129.96,0.00027955,2]
[423120675,1779868241000,-9763.15068464,0.00028502,2]
[423120677,1779868241000,-1129.96,0.00028731,2]
[423120673,1779868241000,-1680.0,0.00028488,2]
[423120663,1779868241000,-772.98,0.00027669,3]
[423120661,1779868241000,-257.65,0.00027669,3]
[423120667,1779868241000,-632.62,0.00027907,2]
[423120665,1779868241000,-23358.56611702,0.00027679,2]
[423120679,1779868241000,-632.62,0.00028807,2]
[423120681,1779868241000,-150.0,0.00029,2]
[423120683,1779868241000,-515.3,0.00029039,3]
[423120685,1779868241000,-166.66,0.00029073,30]
[423120718,1779868241000,-200.0,0.00030553,2]
[423120687,1779868241000,-213.76,0.00029164,120]
[423120691,1779868241000,-2269.96,0.00029629,10]
[423120693,1779868241000,-9763.15068464,0.00029639,2]
[423120703,1779868241000,-1091.9,0.00030168,2]
[423120701,1779868241000,-182.87,0.00030062,120]
[423120695,1779868241000,-166.66,0.00029685,30]
[423120697,1779868241000,-632.62,0.00029707,2]
[423120699,1779868241000,-500.0,0.00029836,2]
[423120705,1779868241000,-992.54,0.00030225,2]
[423120708,1779868241000,-1653.33,0.00030239,120]
[423120710,1779868241000,-166.66,0.00030297,30]
[423120712,1779868241000,-1488.24,0.00030436,2]
[423120728,1779868241000,-1495.17,0.00031257,2]
[423120714,1779868241000,-5871.88,0.00030456,2]
[423120727,1779868241000,-166.68,0.00031203,2]
[423120689,1779868241000,-1129.96,0.00029508,2]
[423120796,1779868241000,-151.0,0.00032414,7]
[423120830,1779868241000,-150.99,0.00033038,2]
[423120802,1779868241000,-150.0,0.00032717,7]
[423120863,1779868241000,-213.76,0.00033602,120]
[423120866,1779868241000,-150.0,0.00033732,7]
[423120868,1779868241000,-150.0,0.00033732,7]
[423120878,1779868241000,-9763.15068464,0.00034187,2]
[423120870,1779868241000,-150.0,0.00033732,7]
[423120880,1779868241000,-632.62,0.00034208,2]
[423120888,1779868241000,-151.0,0.00034323,7]
[423120872,1779868241000,-1540.41853989,0.000339,120]
[423120874,1779868241000,-150.0,0.00033985,7]
[423120886,1779868241000,-175.243662,0.00034323,7]
[423120876,1779868241000,-1653.33,0.00034018,120]
[423120882,1779868241000,-150.0,0.00034239,7]
[423120884,1779868241000,-163.227334,0.0003429,21]
[423120890,1779868241000,-438.340192,0.00034323,7]
[423120865,1779868241000,-150.0,0.00033732,7]
[423120892,1779868241000,-438.340192,0.00034323,7]
[423120898,1779868241000,-232.477716,0.00034323,7]
[423120896,1779868241000,-438.340192,0.00034323,7]
[423120900,1779868241000,-232.477716,0.00034323,7]
[423120894,1779868241000,-438.340192,0.00034323,7]
[423120912,1779868241000,-150.0,0.00034492,7]
[423120910,1779868241000,-200.0,0.00034415,15]
[423120906,1779868241000,-150.0,0.00034323,7]
[423120904,1779868241000,-232.477716,0.00034323,7]
[423120908,1779868241000,-150.0,0.00034323,7]
[423120914,1779868241000,-150.0,0.00034619,7]
[423120916,1779868241000,-150.0,0.00034746,7]
[423120920,1779868241000,-150.0,0.00034844,60]
[423120798,1779868241000,-150.0,0.00032463,7]
[423120922,1779868241000,-150.0,0.00034844,60]
[423120902,1779868241000,-232.477716,0.00034323,7]
[423120858,1779868241000,-188.92,0.00033535,2]
[423120918,1779868241000,-169.46,0.0003475,3]
[423120854,1779868241000,-152.0,0.0003347,120]
[423120856,1779868241000,-150.0,0.00033478,7]
[423120790,1779868241000,-9999.99,0.00032232,2]
[423120788,1779868241000,-22549.29,0.00032232,2]
[423120806,1779868241000,-151.0,0.00032782,7]
[423120804,1779868241000,-151.0,0.00032782,7]
[423120800,1779868241000,-150.0,0.00032548,7]
[423120792,1779868241000,-511.969,0.00032254,32]
[423120808,1779868241000,-151.0,0.00032782,7]
[423120810,1779868241000,-151.0,0.00032782,7]
[423120812,1779868241000,-151.0,0.00032782,7]
[423120814,1779868241000,-151.0,0.00032782,7]
[423120816,1779868241000,-151.0,0.00032782,7]
[423120820,1779868241000,-1495.17,0.00032782,2]
[423120822,1779868241000,-150.0,0.00032844,7]
[423120818,1779868241000,-151.0,0.00032782,7]
[423120794,1779868241000,-632.62,0.00032408,2]
[423120824,1779868241000,-150.0,0.00032971,7]
[423120832,1779868241000,-299.99,0.00033038,30]
[423120852,1779868241000,-200.0,0.00033415,15]
[423120850,1779868241000,-200.0,0.00033415,15]
[423120848,1779868241000,-632.62,0.00033308,2]
[423120844,1779868241000,-150.0,0.0003314,7]
[423120846,1779868241000,-150.0,0.00033224,7]
[423120860,1779868241000,-1495.17,0.00033545,2]
[423120840,1779868241000,-9763.15068464,0.0003305,2]
[423120838,1779868241000,-434.01,0.00033038,15]
[423120834,1779868241000,-1283.71,0.00033038,2]
[423120836,1779868241000,-9999.99,0.00033038,2]
[423120826,1779868241000,-1540.41853989,0.00033,120]
[423120828,1779868241000,-499.99,0.00033038,2]
[423120842,1779868241000,-150.0,0.0003314,7]
[423121002,1779868242000,-202.72444352,0.00035048,2]
[423121004,1779868242000,-10533.00765802,0.00035048,2]
[423121000,1779868242000,-284.62108874,0.00035048,2]
[423121011,1779868242000,-151.0,0.00035095,7]
[423121009,1779868242000,-151.0,0.00035095,7]
[423121008,1779868242000,-151.0,0.00035095,7]
[423121015,1779868242000,-265.032728,0.00035095,7]
[423120998,1779868242000,-5450.01,0.0003501,2]
[423120996,1779868242000,-151.0,0.00035,7]
[423120994,1779868242000,-185.18159464,0.00035,7]
[423121017,1779868242000,-151.0,0.00035095,7]
[423121013,1779868242000,-151.0,0.00035095,7]
[423121047,1779868242000,-500.0,0.00035109,120]
[423121026,1779868242000,-642.668548,0.00035095,7]
[423121006,1779868242000,-182.87,0.00035072,120]
[423121021,1779868242000,-151.0,0.00035095,7]
[423121023,1779868242000,-642.668548,0.00035095,7]
[423121024,1779868242000,-642.668548,0.00035095,7]
[423121034,1779868242000,-151.0,0.00035108,7]
[423121041,1779868242000,-151.0,0.00035108,7]
[423121028,1779868242000,-642.668548,0.00035095,7]
[423121039,1779868242000,-151.0,0.00035108,7]
[423121043,1779868242000,-151.0,0.00035108,7]
[423121031,1779868242000,-6876.0,0.00035096,2]
[423121036,1779868242000,-151.0,0.00035108,7]
[423121032,1779868242000,-1433.0,0.00035096,2]
[423121045,1779868242000,-243.235936,0.00035108,7]
[423120989,1779868242000,-1540.41853989,0.00035,120]
[423121019,1779868242000,-151.0,0.00035095,7]
[423120992,1779868242000,-150.0,0.00035,4]
[423120961,1779868242000,-150.0,0.00034844,60]
[423120978,1779868242000,-151.0,0.0003499,7]
[423120924,1779868242000,-150.0,0.00034844,60]
[423120926,1779868242000,-150.0,0.00034844,60]
[423120936,1779868242000,-150.0,0.00034844,60]
[423120932,1779868242000,-150.0,0.00034844,60]
[423120934,1779868242000,-150.0,0.00034844,60]
[423120928,1779868242000,-150.0,0.00034844,60]
[423120930,1779868242000,-150.0,0.00034844,60]
[423120938,1779868242000,-150.0,0.00034844,60]
[423120944,1779868242000,-250.0,0.00034844,60]
[423120946,1779868242000,-150.0,0.00034844,60]
[423120948,1779868242000,-150.0,0.00034844,60]
[423120950,1779868242000,-184.48877466,0.00034844,60]
[423120954,1779868242000,-500.0,0.00034844,60]
[423120988,1779868242000,-150.0,0.00035,7]
[423120953,1779868242000,-500.0,0.00034844,60]
[423120959,1779868242000,-150.0,0.00034844,60]
[423120963,1779868242000,-150.0,0.00034844,60]
[423120965,1779868242000,-284.84224785,0.00034844,60]
[423120966,1779868242000,-151.0,0.00034844,7]
[423120968,1779868242000,-3826.86947048,0.0003489,2]
[423120970,1779868242000,-150.0,0.00034915,7]
[423120984,1779868242000,-151.0,0.0003499,7]
[423120980,1779868242000,-151.0,0.0003499,7]
[423120986,1779868242000,-151.0,0.0003499,7]
[423120976,1779868242000,-151.0,0.0003499,7]
[423120982,1779868242000,-151.0,0.0003499,7]
[423120974,1779868242000,-151.0,0.0003499,7]
[423120972,1779868242000,-19383.46855849,0.0003499,2]
[423120957,1779868242000,-170.0,0.00034844,60]
[423121049,1779868242000,-576.76,0.00035109,30]
[423121105,1779868242000,-151.0,0.0003511,7]
[423121061,1779868242000,-151.0,0.0003511,7]
[423121114,1779868242000,-151.0,0.0003511,7]
[423121121,1779868242000,-642.668548,0.0003511,7]
[423121116,1779868242000,-290.08099,0.0003511,7]
[423121123,1779868242000,-642.668548,0.0003511,7]
[423121135,1779868242000,-642.668548,0.0003511,7]
[423121138,1779868242000,-500.0,0.0003511,120]
[423121143,1779868242000,-500.0,0.0003511,120]
[423121141,1779868242000,-500.0,0.0003511,120]
[423121145,1779868242000,-500.0,0.0003511,120]
[423121147,1779868242000,-500.0,0.0003511,120]
[423121125,1779868242000,-642.668548,0.0003511,7]
[423121127,1779868242000,-642.668548,0.0003511,7]
[423121150,1779868242000,-543.00996998,0.0003511,120]
[423121112,1779868242000,-151.0,0.0003511,7]
[423121132,1779868242000,-642.668548,0.0003511,7]
[423121152,1779868242000,-151.0,0.0003511,7]
[423121162,1779868242000,-151.0,0.0003511,7]
[423121164,1779868242000,-151.0,0.0003511,7]
[423121166,1779868242000,-151.0,0.0003511,7]
[423121168,1779868242000,-151.0,0.0003511,7]
[423121154,1779868242000,-151.0,0.0003511,7]
[423121170,1779868242000,-222.579072,0.0003511,7]
[423121156,1779868242000,-151.0,0.0003511,7]
[423121160,1779868242000,-151.0,0.0003511,7]
[423121158,1779868242000,-151.0,0.0003511,7]
[423121172,1779868242000,-576.76,0.0003511,30]
[423121174,1779868242000,-576.76,0.0003511,30]
[423121176,1779868242000,-576.76,0.0003511,30]
[423121130,1779868242000,-642.668548,0.0003511,7]
[423121110,1779868242000,-151.0,0.0003511,7]
[423121059,1779868242000,-151.0,0.0003511,7]
[423121109,1779868242000,-151.0,0.0003511,7]
[423121107,1779868242000,-151.0,0.0003511,7]
[423121055,1779868242000,-500.0,0.00035109,120]
[423121052,1779868242000,-500.0,0.00035109,120]
[423121051,1779868242000,-500.0,0.00035109,2]
[423121057,1779868242000,-151.0,0.0003511,7]
[423121063,1779868242000,-151.0,0.0003511,7]
[423121067,1779868242000,-164.213196,0.0003511,7]
[423121065,1779868242000,-164.213196,0.0003511,7]
[423121071,1779868242000,-164.213196,0.0003511,7]
[423121073,1779868242000,-151.0,0.0003511,7]
[423121084,1779868242000,-151.0,0.0003511,7]
[423121085,1779868242000,-151.0,0.0003511,7]
[423121088,1779868242000,-151.0,0.0003511,7]
[423121075,1779868242000,-151.0,0.0003511,7]
[423121069,1779868242000,-164.213196,0.0003511,7]
[423121080,1779868242000,-151.0,0.0003511,7]
[423121077,1779868242000,-151.0,0.0003511,7]
[423121100,1779868242000,-151.0,0.0003511,7]
[423121103,1779868242000,-151.0,0.0003511,7]
[423121101,1779868242000,-151.0,0.0003511,7]
[423121098,1779868242000,-151.0,0.0003511,7]
[423121093,1779868242000,-151.0,0.0003511,7]
[423121099,1779868242000,-151.0,0.0003511,7]
[423121118,1779868242000,-642.668548,0.0003511,7]
[423121097,1779868242000,-151.0,0.0003511,7]
[423121092,1779868242000,-153.759988,0.0003511,7]
[423121090,1779868242000,-151.0,0.0003511,7]
[423121081,1779868242000,-151.0,0.0003511,7]
[423121095,1779868242000,-151.0,0.0003511,7]
[423121276,1779868243000,-500.0,0.0003511,120]
[423121280,1779868243000,-500.0,0.0003511,120]
[423121278,1779868243000,-500.0,0.0003511,120]
[423121266,1779868243000,-500.0,0.0003511,120]
[423121258,1779868243000,-500.0,0.0003511,2]
[423121249,1779868243000,-500.0,0.0003511,2]
[423121254,1779868243000,-500.0,0.0003511,2]
[423121256,1779868243000,-500.0,0.0003511,2]
[423121250,1779868243000,-500.0,0.0003511,2]
[423121247,1779868243000,-500.0,0.0003511,2]
[423121270,1779868243000,-500.0,0.0003511,120]
[423121260,1779868243000,-500.0,0.0003511,120]
[423121284,1779868243000,-500.0,0.0003511,120]
[423121299,1779868243000,-200.0,0.00035149,10]
[423121268,1779868243000,-500.0,0.0003511,120]
[423121272,1779868243000,-500.0,0.0003511,120]
[423121286,1779868243000,-500.0,0.0003511,120]
[423121290,1779868243000,-500.0,0.0003511,120]
[423121288,1779868243000,-151.0,0.0003511,7]
[423121274,1779868243000,-604.76395899,0.0003511,120]
[423121293,1779868243000,-500.0,0.0003511,120]
[423121306,1779868243000,-216.0,0.00035242,10]
[423121297,1779868243000,-250.0,0.0003511,30]
[423121304,1779868243000,-500.0,0.0003521,2]
[423121308,1779868243000,-150.0,0.00035253,7]
[423121294,1779868243000,-500.0,0.0003511,120]
[423121244,1779868243000,-500.0,0.0003511,2]
[423121282,1779868243000,-500.0,0.0003511,120]
[423121252,1779868243000,-500.0,0.0003511,2]
[423121218,1779868243000,-438.340192,0.0003511,7]
[423121238,1779868243000,-232.477716,0.0003511,7]
[423121302,1779868243000,-1971.44,0.000352,14]
[423121178,1779868243000,-576.76,0.0003511,30]
[423121188,1779868243000,-576.76,0.0003511,30]
[423121190,1779868243000,-151.0,0.0003511,7]
[423121192,1779868243000,-151.0,0.0003511,7]
[423121194,1779868243000,-153.919325,0.0003511,7]
[423121196,1779868243000,-151.0,0.0003511,7]
[423121182,1779868243000,-576.76,0.0003511,30]
[423121180,1779868243000,-576.76,0.0003511,30]
[423121198,1779868243000,-155.211679,0.0003511,7]
[423121186,1779868243000,-576.76,0.0003511,30]
[423121184,1779868243000,-576.76,0.0003511,30]
[423121201,1779868243000,-151.0,0.0003511,7]
[423121240,1779868243000,-500.0,0.0003511,2]
[423121203,1779868243000,-263.045368,0.0003511,7]
[423121222,1779868243000,-232.477716,0.0003511,7]
[423121220,1779868243000,-438.340192,0.0003511,7]
[423121224,1779868243000,-232.477716,0.0003511,7]
[423121206,1779868243000,-438.340192,0.0003511,7]
[423121212,1779868243000,-438.340192,0.0003511,7]
[423121208,1779868243000,-438.340192,0.0003511,7]
[423121229,1779868243000,-232.477716,0.0003511,7]
[423121227,1779868243000,-232.477716,0.0003511,7]
[423121214,1779868243000,-438.340192,0.0003511,7]
[423121210,1779868243000,-438.340192,0.0003511,7]
[423121231,1779868243000,-232.477716,0.0003511,7]
[423121233,1779868243000,-232.477716,0.0003511,7]
[423121235,1779868243000,-232.477716,0.0003511,7]
[423121216,1779868243000,-438.340192,0.0003511,7]
[423121311,1779868243000,-408.6925,0.00035292,30]
[423121313,1779868243000,-9763.15068464,0.00035324,2]
[423121405,1779868243000,-302.21937029,0.00035446,2]
[423121363,1779868243000,-300.0,0.00035446,2]
[423121364,1779868243000,-300.0,0.00035446,2]
[423121368,1779868243000,-300.0,0.00035446,2]
[423121377,1779868243000,-565.10477641,0.00035446,2]
[423121366,1779868243000,-484.76763572,0.00035446,2]
[423121367,1779868243000,-310.28230408,0.00035446,2]
[423121376,1779868243000,-480.03920667,0.00035446,2]
[423121371,1779868243000,-300.0,0.00035446,2]
[423121379,1779868243000,-300.0,0.00035446,2]
[423121380,1779868243000,-449.17313882,0.00035446,2]
[423121370,1779868243000,-300.0,0.00035446,2]
[423121383,1779868243000,-300.0,0.00035446,2]
[423121394,1779868243000,-300.0,0.00035446,2]
[423121374,1779868243000,-300.0,0.00035446,2]
[423121392,1779868243000,-300.0,0.00035446,2]
[423121397,1779868243000,-1068.40163352,0.00035446,2]
[423121387,1779868243000,-300.0,0.00035446,2]
[423121384,1779868243000,-493.38669858,0.00035446,2]
[423121389,1779868243000,-300.0,0.00035446,2]
[423121396,1779868243000,-528.48327171,0.00035446,2]
[423121388,1779868243000,-605.31118564,0.00035446,2]
[423121385,1779868243000,-300.0,0.00035446,2]
[423121399,1779868243000,-894.65434383,0.00035446,2]
[423121408,1779868243000,-300.99795142,0.00035446,2]
[423121403,1779868243000,-727.07827244,0.00035446,2]
[423121406,1779868243000,-300.0,0.00035446,2]
[423121410,1779868243000,-313.90684075,0.00035446,2]
[423121300,1779868243000,-10533.00765797,0.00035197,2]
[423121391,1779868243000,-300.0,0.00035446,2]
[423121373,1779868243000,-1096.2926835,0.00035446,2]
[423121381,1779868243000,-300.0,0.00035446,2]
[423121350,1779868243000,-1148.83589152,0.00035446,2]
[423121361,1779868243000,-452.52893397,0.00035446,2]
[423121317,1779868243000,-151.0,0.00035388,7]
[423121319,1779868243000,-152.070695,0.00035388,7]
[423121321,1779868243000,-151.0,0.00035388,7]
[423121329,1779868243000,-302.21937029,0.00035446,2]
[423121331,1779868243000,-300.99795142,0.00035446,2]
[423121330,1779868243000,-300.0,0.00035446,2]
[423121320,1779868243000,-151.0,0.00035388,7]
[423121333,1779868243000,-313.90684075,0.00035446,2]
[423121324,1779868243000,-170.05628432,0.00035392,2]
[423121334,1779868243000,-300.0,0.00035446,2]
[423121322,1779868243000,-151.0,0.00035388,7]
[423121337,1779868243000,-1263.96825586,0.00035446,2]
[423121336,1779868243000,-300.0,0.00035446,2]
[423121327,1779868243000,-152.14,0.000354,7]
[423121315,1779868243000,-10533.00765797,0.00035347,2]
[423121346,1779868243000,-950.32029804,0.00035446,2]
[423121345,1779868243000,-865.6208675,0.00035446,2]
[423121348,1779868243000,-300.09384644,0.00035446,2]
[423121356,1779868243000,-300.0,0.00035446,2]
[423121325,1779868243000,-679.54491213,0.00035392,2]
[423121359,1779868243000,-578.28315025,0.00035446,2]
[423121354,1779868243000,-594.79850986,0.00035446,2]
[423121342,1779868243000,-300.0,0.00035446,2]
[423121358,1779868243000,-464.48677942,0.00035446,2]
[423121340,1779868243000,-527.62572404,0.00035446,2]
[423121353,1779868243000,-300.0,0.00035446,2]
[423121351,1779868243000,-310.02493426,0.00035446,2]
[423121339,1779868243000,-344.45437934,0.00035446,2]
[423121343,1779868243000,-300.76542561,0.00035446,2]
[423121494,1779868244000,-438.340188,0.00035496,7]
[423121491,1779868244000,-438.340192,0.00035496,7]
[423121489,1779868244000,-438.340192,0.00035496,7]
[423121487,1779868244000,-438.340192,0.00035496,7]
[423121485,1779868244000,-10533.00765797,0.00035496,2]
[423121478,1779868244000,-300.0,0.00035446,2]
[423121484,1779868244000,-56463.44235388,0.00035496,5]
[423121476,1779868244000,-300.0,0.00035446,2]
[423121472,1779868244000,-300.0,0.00035446,2]
[423121474,1779868244000,-300.0,0.00035446,2]
[423121480,1779868244000,-300.0,0.00035446,2]
[423121500,1779868244000,-232.477716,0.00035496,7]
[423121482,1779868244000,-564.109405,0.00035478,2]
[423121503,1779868244000,-232.477716,0.00035496,7]
[423121516,1779868244000,-164.213196,0.00035497,7]
[423121507,1779868244000,-151.0,0.00035496,7]
[423121497,1779868244000,-232.477716,0.00035496,7]
[423121509,1779868244000,-151.0,0.00035497,7]
[423121512,1779868244000,-151.0,0.00035497,7]
[423121514,1779868244000,-151.0,0.00035497,7]
[423121518,1779868244000,-164.213196,0.00035497,7]
[423121523,1779868244000,-164.213196,0.00035497,7]
[423121520,1779868244000,-164.213196,0.00035497,7]
[423121531,1779868244000,-150.0,0.00035507,7]
[423121533,1779868244000,-229.58213814,0.00035507,7]
[423121525,1779868244000,-151.0,0.00035497,7]
[423121529,1779868244000,-150.0,0.00035507,7]
[423121527,1779868244000,-151.0,0.00035497,7]
[423121505,1779868244000,-232.47772,0.00035496,7]
[423121468,1779868244000,-1096.2926835,0.00035446,2]
[423121535,1779868244000,-163.14990862,0.00035507,7]
[423121466,1779868244000,-300.0,0.00035446,2]
[423121411,1779868244000,-300.0,0.00035446,2]
[423121413,1779868244000,-300.0,0.00035446,2]
[423121415,1779868244000,-300.0,0.00035446,2]
[423121417,1779868244000,-300.0,0.00035446,2]
[423121419,1779868244000,-1263.96825586,0.00035446,2]